fUST/lending_fUST_20240125
["ID","MTS","AMOUNT","RATE_DAILY","PERIOD"]
[312748218,1706193040272,-521.63335877,0.00031799,2]
[312748219,1706193040282,-381.25968953,0.00031799,7]
[312748221,1706193040291,-151.0,0.000318,2]
[312748223,1706193040300,-393.719375,0.000318,2]
[312748226,1706193040309,-393.719375,0.000318,2]
[312748228,1706193040318,-512.739382,0.000318,2]
[312748230,1706193040327,-512.739382,0.000318,2]
[312748232,1706193040336,-151.0,0.000318,2]
[312748234,1706193040345,-151.0,0.000318,2]
[312748236,1706193040355,-831.24253,0.000318,2]
[312748239,1706193040363,-831.24253,0.000318,2]
[312748242,1706193040372,-8866.361323,0.000318,2]
[312748244,1706193040382,-8866.361323,0.000318,2]
[312748247,1706193040391,-151.0,0.000318,2]
[312748251,1706193040401,-75753.73675311,0.000318,2]
[312748255,1706193040415,-583.54336383,0.000318,2]
[312748259,1706193040426,-4373.99999997,0.000318,2]
[312748271,1706193040499,-318.99718759,0.000318,2]
[312748363,1706193041335,-154.98450155,0.00018611,2]
[312748365,1706193041345,-154.98450155,0.00018611,2]
[312748367,1706193041354,-375.28099765,0.00018612,2]
[312748394,1706193041609,-3371.98670619,0.00018612,2]
[312748396,1706193041620,-154.98450155,0.00018612,2]
[312748398,1706193041630,-644.67775668,0.00018612,2]
[312748400,1706193041640,-500.0,0.00020822,2]
[312748402,1706193041650,-190.40084948,0.00020822,2]
[312748403,1706193041659,-500.0,0.00020822,2]
[312748405,1706193041669,-500.0,0.00020822,2]
[312748407,1706193041679,-335.28077481,0.00020822,2]
[312748409,1706193041688,-577.97246029,0.00020822,2]
[312748412,1706193041700,-500.0,0.00020822,2]
[312748414,1706193041709,-500.0,0.00020822,2]
[312748415,1706193041718,-500.0,0.00020822,2]
[312748417,1706193041728,-500.0,0.00020822,2]
[312748418,1706193041737,-500.0,0.00020822,2]
[312748419,1706193041747,-500.0,0.00020822,2]
[312748420,1706193041760,-313.1047801,0.00020822,2]
[312748421,1706193041770,-500.0,0.00020822,2]
[312748422,1706193041779,-500.0,0.00020822,2]
[312748424,1706193041883,-500.0,0.00020822,2]
[312748425,1706193041896,-500.0,0.00020822,2]
[312748427,1706193041906,-500.0,0.00020822,2]
[312748429,1706193041916,-500.0,0.00020822,2]
[312748431,1706193041925,-500.0,0.00020822,2]
[312748433,1706193041934,-500.0,0.00020822,2]
[312748435,1706193041943,-500.0,0.00020822,2]
[312748437,1706193041952,-500.0,0.00020822,2]
[312748439,1706193041962,-500.0,0.00020822,2]
[312748441,1706193041971,-173.79610921,0.00020822,2]
[312748443,1706193041982,-211.38916615,0.00020822,2]
[312748445,1706193041992,-500.0,0.00020822,2]
[312748447,1706193042005,-500.0,0.00020822,2]
[312748449,1706193042015,-500.0,0.00020822,2]
[312748451,1706193042025,-500.0,0.00020822,2]
[312748453,1706193042038,-500.0,0.00020822,2]
[312748456,1706193042051,-500.0,0.00020822,2]
[312748458,1706193042061,-500.0,0.00020822,2]
[312748460,1706193042071,-500.0,0.00020822,2]
[312748461,1706193042082,-500.0,0.00020822,2]
[312748464,1706193042111,-500.0,0.00020822,2]
[312748466,1706193042138,-500.0,0.00020822,2]
[312748468,1706193042147,-500.0,0.00020822,2]
[312748469,1706193042157,-500.0,0.00020822,2]
[312748471,1706193042167,-500.0,0.00020822,2]
[312748473,1706193042177,-500.0,0.00020822,2]
[312748476,1706193042188,-500.0,0.00020822,2]
[312748477,1706193042197,-65.13843737,0.00020822,2]
[312748480,1706193042211,-434.86156263,0.00020822,2]
[312748482,1706193042220,-633.82892817,0.00020822,2]
[312748484,1706193042229,-500.0,0.00020822,2]
[312748486,1706193042239,-500.0,0.00020822,2]
[312748488,1706193042248,-500.0,0.00020822,2]
[312748490,1706193042258,-500.0,0.00020822,2]
[312748492,1706193042267,-500.0,0.00020822,2]
[312748494,1706193042277,-489.1267264,0.00020822,2]
[312748496,1706193042291,-10.8732736,0.00020822,2]
[312748498,1706193042301,-500.0,0.00020822,2]
[312748500,1706193042310,-37.81752258,0.00020822,2]
[312748613,1706193043292,-200.99475636,0.00020821,2]
[312748615,1706193043301,-150.94310489,0.00020822,2]
[312748617,1706193043312,-311.23937253,0.00020822,2]
[312748619,1706193043321,-500.0,0.00020822,2]
[312748621,1706193043330,-500.0,0.00020822,2]
[312748623,1706193043339,-500.0,0.00020822,2]
[312748625,1706193043348,-500.0,0.00020822,2]
[312748627,1706193043357,-500.0,0.00020822,2]
[312748629,1706193043366,-500.0,0.00020822,2]
[312748631,1706193043376,-349.91651028,0.00020822,2]
[312748633,1706193043388,-150.08348972,0.00020822,2]
[312748636,1706193043398,-500.0,0.00020822,2]
[312748638,1706193043408,-500.0,0.00020822,2]
[312748640,1706193043418,-500.0,0.00020822,2]
[312748642,1706193043427,-500.0,0.00020822,2]
[312748644,1706193043438,-180.53973398,0.00020822,2]
[312748647,1706193043451,-319.46026602,0.00020822,2]
[312748649,1706193043462,-500.0,0.00020822,2]
[312748650,1706193043471,-161.45240529,0.00020822,2]
[312748671,1706193043656,-338.54759471,0.00020822,2]
[312748673,1706193043664,-500.0,0.00020822,2]
[312748675,1706193043673,-500.0,0.00020822,2]
[312748677,1706193043683,-500.0,0.00020822,2]
[312748679,1706193043691,-500.0,0.00020822,2]
[312748681,1706193043700,-96.58895828,0.00020822,2]
[312748972,1706193046377,-403.41104172,0.00020822,2]
[312748974,1706193046387,-500.0,0.00020822,2]
[312748976,1706193046397,-500.0,0.00020822,2]
[312748978,1706193046407,-500.0,0.00020822,2]
[312748980,1706193046416,-500.0,0.00020822,2]
[312748982,1706193046426,-500.0,0.00020822,2]
[312748984,1706193046435,-145.98824613,0.00020822,2]
[312752104,1706193221544,978.2579722,0.00016857,2]
[312752105,1706193244271,1470.54830513,0.00014047,2]
[312752106,1706193278863,195.859399,0.00017723,2]
[312752119,1706193505956,24900.0,0.00017494,2]
[312752120,1706193559453,192.35223829,0.00018384,3]
[312752121,1706193569787,268.55229959,0.00018385,2]
[312752122,1706193582047,163.32257243,0.00018382,2]
[312752123,1706193587111,163.32257242,0.00018383,2]
[312752124,1706193592044,163.32257242,0.00018383,2]
[312752125,1706193597250,163.32257242,0.00018384,2]
[312752129,1706193722722,2794.96547119,0.00029,30]
[312752130,1706193811572,5772.2207688,0.00017451,2]
[312752131,1706193846598,722.32650432,0.00027,19]
[312752132,1706193878103,167.03300135,0.00018339,2]
[312752133,1706193968155,214.84183968,0.00018327,2]
[312752134,1706194032907,24900.0,0.00017417,2]
[312752135,1706194100678,500.0,0.000184,2]
[312752136,1706194101151,3920.61735066,0.000184,2]
[312752137,1706194102681,302.05676248,0.000184,2]
[312752138,1706194103820,555.60673024,0.000184,2]
[312752139,1706194104770,155.00310006,0.000184,2]
[312752140,1706194106560,644.67775668,0.000184,2]
[312752141,1706194108917,211.61433974,0.000184,2]
[312752142,1706194109124,1267.361247,0.000184,2]
[312752143,1706194109205,904.01402558,0.000184,2]
[312752144,1706194111303,272.67748325,0.000184,2]
[312752145,1706194112657,360.91917073,0.000184,2]
[312752146,1706194114654,500.0,0.000184,2]
[312752147,1706194116252,260.99214553,0.000184,2]
[312752148,1706194117135,3920.61735066,0.000184,2]
[312752149,1706194117820,555.28501414,0.000184,2]
[312752150,1706194118092,10546.60603151,0.000184,2]
[312752151,1706194118515,595.3566365,0.000184,2]
[312752152,1706194118735,303.45603278,0.000184,2]
[312752153,1706194120071,938.11704749,0.000184,2]
[312752154,1706194120287,329.68526722,0.000184,2]
[312752155,1706194120767,155.00310006,0.000184,2]
[312752156,1706194120845,616.99357783,0.000184,2]
[312752157,1706194120905,211.61433974,0.000184,2]
[312752158,1706194121218,36979.4730265,0.000184,2]
[312752159,1706194121245,1580.03121208,0.000184,2]
[312752160,1706194123890,680.366612,0.000184,2]
[312752161,1706194124591,644.67775668,0.000184,2]
[312752162,1706194125126,1266.71516238,0.000184,2]
[312752163,1706194125296,272.67748325,0.000184,2]
[312752164,1706194125434,526.92735468,0.000184,2]
[312752165,1706194125968,588.59072754,0.000184,2]
[312752166,1706194126131,181.05736136,0.000184,2]
[312752167,1706194127180,904.01402558,0.000184,2]
[312752168,1706194127895,155.00310006,0.000184,2]
[312752169,1706194128887,156.21203672,0.000184,2]
[312752170,1706194129318,199.31680526,0.000184,2]
[312752171,1706194130621,1294.21834109,0.000184,2]
[312752172,1706194131658,360.91917073,0.000184,2]
[312752173,1706194132326,1741.72112277,0.000184,2]
[312752174,1706194132354,260.99214553,0.000184,2]
[312752175,1706194132393,8765.33903204,0.000184,2]
[312752176,1706194132534,7815.00000009,0.000184,2]
[312752177,1706194132656,500.0,0.000184,2]
[312752178,1706194133227,36979.4730265,0.000184,2]
[312752179,1706194133257,1580.03121208,0.000184,2]
[312752180,1706194134057,938.11704749,0.000184,2]
[312752181,1706194134833,155.00310006,0.000184,2]
[312752182,1706194135904,171.01329024,0.00018399,2]
[312752183,1706194136095,10546.60603151,0.000184,2]
[312752184,1706194136515,713.47684125,0.000184,2]
[312752185,1706194136835,3486.99741621,0.000184,2]
[312752186,1706194136911,211.61433974,0.000184,2]
[312752187,1706194137143,3920.61735066,0.000184,2]
[312752188,1706194137341,155.00310006,0.00018399,2]
[312752189,1706194137513,1026.64006432,0.00018399,2]
[312752190,1706194137921,178.98764938,0.00018399,2]
[312752191,1706194137967,237.7892583,0.00018399,2]
[312752192,1706194138245,4815.70009769,0.00018399,2]
[312752193,1706194138770,155.00310006,0.000184,2]
[312752194,1706194139905,155.00310006,0.000184,2]
[312752195,1706194139992,680.366612,0.000184,2]
[312752196,1706194140129,181.05736136,0.000184,2]
[312752197,1706194140293,329.68526722,0.000184,2]
[312752198,1706194140322,155.00310006,0.000184,2]
[312752199,1706194140672,647.26391148,0.000184,2]
[312752200,1706194141142,19708.51890523,0.000184,2]
[312752201,1706194141290,19874.23653415,0.000184,2]
[312752202,1706194141370,616.99357783,0.000184,2]
[312752203,1706194141960,588.59072754,0.000184,2]
[312752204,1706194142574,155.00310006,0.000184,2]
[312752205,1706194143142,522.3174167,0.000184,2]
[312752206,1706194143190,904.01402558,0.000184,2]
[312752207,1706194143305,293.46148253,0.000184,2]
[312752208,1706194143763,1242.95347942,0.000184,2]
[312752209,1706194143864,155.00310006,0.000184,2]
[312752210,1706194144216,261.22970147,0.000184,2]
[312752211,1706194144615,1294.21834109,0.000184,2]
[312752212,1706194144860,155.00310006,0.000184,2]
[312752213,1706194144998,155.00310006,0.000184,2]
[312752214,1706194145437,526.92735468,0.000184,2]
[312752215,1706194145933,3747.26770384,0.000184,2]
[312752216,1706194146372,4105.13214194,0.000184,2]
[312752217,1706194146538,5581.41281046,0.000184,2]
[312752218,1706194147082,175.28445034,0.000184,2]
[312752219,1706194147115,166.74574018,0.000184,2]
[312752220,1706194147247,2035.37544613,0.000184,2]
[312752224,1706194147319,199.31680526,0.000184,2]
[312752242,1706194147666,265.58036127,0.000184,2]
[312752278,1706194148397,8765.33903204,0.000184,2]
[312752298,1706194148782,5000.0,0.000184,2]
[312752301,1706194148855,267.9034898,0.000184,2]
[312752310,1706194149148,81230.33881666,0.000184,2]
[312752314,1706194149230,243.23479186,0.000184,2]
[312752321,1706194149462,15226.35982831,0.000184,2]
[312752322,1706194149663,244.18511034,0.000184,2]
[312752323,1706194150118,2076.93028756,0.000184,2]
[312752324,1706194150446,688.25423184,0.000184,2]
[312752325,1706194150836,3334.75802877,0.00018032,2]
[312752326,1706194150925,21693.55695647,0.000184,2]
[312752327,1706194151340,155.00310006,0.000184,2]
[312752328,1706194152059,938.11704749,0.000184,2]
[312752329,1706194152258,4815.70009769,0.000184,2]
[312752330,1706194152288,1741.72112277,0.000184,2]
[312752331,1706194152944,167.07507869,0.000184,2]
[312752332,1706194153145,3920.61735066,0.000184,2]
[312752333,1706194153295,19874.23653415,0.000184,2]
[312752334,1706194153610,1026.64006432,0.000184,2]
[312752337,1706194154277,260.99214553,0.000184,2]
[312752338,1706194154315,155.0842137,0.000184,2]
[312752339,1706194155250,1580.03121208,0.000184,2]
[312752340,1706194155894,680.366612,0.000184,2]
[312752341,1706194156384,155.00310006,0.000184,2]
[312752342,1706194157554,18911.34410975,0.000184,2]
[312752343,1706194159164,541.04902725,0.000184,2]
[312752344,1706194159365,616.99357783,0.000184,2]
[312752345,1706194159991,664.86308055,0.000184,2]
[312752419,1706194188863,167.03300129,0.00018301,2]
[312752420,1706194210719,261.22970147,0.000184,2]
[312752421,1706194212411,171.01329024,0.000184,2]
[312752422,1706194212441,178.98764938,0.000184,2]
[312752423,1706194212471,155.00310006,0.000184,2]
[312752440,1706194217159,500.0,0.000184,2]
[312752441,1706194217380,155.00310006,0.000184,2]
[312752442,1706194217430,211.61433974,0.000184,2]
[312752443,1706194217832,199.31680526,0.000184,2]
[312752445,1706194220893,329.68526722,0.000184,2]
[312752446,1706194221715,155.00310006,0.000184,2]
[312752447,1706194222008,155.00310006,0.000184,2]
[312752448,1706194222960,155.00310006,0.000184,2]
[312752451,1706194224674,213.51549379,0.000184,2]
[312752452,1706194225594,166.74574018,0.000184,2]
[312752453,1706194228394,680.366612,0.000184,2]
[312752454,1706194228972,688.25423184,0.000184,2]
[312752489,1706194229948,526.92735468,0.000184,2]
[312752500,1706194230369,155.00310006,0.000184,2]
[312752564,1706194232394,-155.00310006,0.00018401,3]
[312752566,1706194232403,-2706.67374614,0.00018449,2]
[312752572,1706194232458,-55.76864892,0.00018449,2]
[312752574,1706194232467,-2035.37544613,0.00018449,2]
[312752576,1706194232476,-1994.28554433,0.00018449,2]
[312752578,1706194232485,-2816.27770765,0.00018449,2]
[312752580,1706194232494,-1741.72112277,0.00018449,2]
[312752582,1706194232502,-3747.26770384,0.0001845,2]
[312752584,1706194232511,-1294.21834109,0.0001845,2]
[312752586,1706194232521,-19708.51890523,0.0001845,2]
[312752588,1706194232529,-2039.84982742,0.0001845,2]
[312752589,1706194232538,-23745.44379133,0.0001845,2]
[312752604,1706194233660,3920.61735066,0.00018399,2]
[312752647,1706194238447,-500.0,0.00018448,2]
[312752649,1706194238457,-1484.80386677,0.00018448,2]
[312752651,1706194238466,-6735.19613331,0.00018448,2]
[312752654,1706194238483,-3563.629695,0.00018448,2]
[312752658,1706194238520,-9575.41070584,0.00018448,2]
[312752660,1706194238530,-20881.31059739,0.00018448,2]
[312752663,1706194238540,-4815.70009769,0.00018449,2]
[312752665,1706194238549,-15226.35982831,0.00018449,2]
[312752666,1706194238560,-18911.34410975,0.00018449,2]
[312752668,1706194238569,-13234.02923517,0.0001845,2]
[312752670,1706194238579,-4105.13214194,0.00018451,2]
[312752672,1706194238588,-1242.95347942,0.00018451,2]
[312752675,1706194238598,-155.30439429,0.00018454,2]
[312752676,1706194238607,-171.01329024,0.00018455,2]
[312752678,1706194238617,-178.98764938,0.00018455,2]
[312752681,1706194238626,-199.31680526,0.00018455,2]
[312752683,1706194238636,-156.97471878,0.00018455,2]
[312752685,1706194238645,-211.61433974,0.00018455,2]
[312752687,1706194238654,-155.00465014,0.00018455,2]
[312752688,1706194238664,-261.22970147,0.00018456,2]
[312752690,1706194238673,-81230.33881666,0.00018456,2]
[312752692,1706194238683,-1361.35996089,0.0001846,5]
[312752694,1706194238693,-640.65767257,0.00018482,2]
[312752696,1706194238702,-309.70578029,0.00018486,2]
[312752698,1706194238712,-822.68328998,0.00018488,2]
[312752700,1706194238722,-8010.10806137,0.0001849,2]
[312752703,1706194238731,-156.07097879,0.0001849,2]
[312752705,1706194238741,-1253.9943907,0.0001849,2]
[312752706,1706194238750,-193.44653572,0.0001849,2]
[312752708,1706194238763,-303.30651264,0.0001849,2]
[312752710,1706194238772,-202.95281076,0.00018495,2]
[312752711,1706194238781,-156.55351786,0.00018495,2]
[312752712,1706194238790,-264.22501911,0.00018495,2]
[312752713,1706194238800,-309.4796622,0.00018495,2]
[312752714,1706194238809,-225.3996251,0.00018495,2]
[312752715,1706194238818,-155.19487419,0.00018495,2]
[312752716,1706194238827,-237.18290849,0.00018495,2]
[312752717,1706194238836,-295.01713766,0.00018495,2]
[312752718,1706194238845,-614.04279127,0.00018495,2]
[312752719,1706194238854,-157.10944563,0.00018595,2]
[312752721,1706194238865,-155.10837766,0.00018705,2]
[312752723,1706194238881,-170.0,0.0001872,2]
[312752725,1706194238896,-189.89773254,0.0001872,2]
[312752726,1706194238909,-2104.41067508,0.0001873,2]
[312752727,1706194238923,-155.34919352,0.0001873,2]
[312752728,1706194238937,-274.09393528,0.0001873,2]
[312752729,1706194238952,-470.87385711,0.0001873,2]
[312752730,1706194238966,-155.34756708,0.0001873,2]
[312752731,1706194238981,-155.48219181,0.0001873,2]
[312752732,1706194238993,-185.34356728,0.0001873,2]
[312752733,1706194239007,-155.78337539,0.0001873,2]
[312752734,1706194239027,-156.775062,0.0001873,2]
[312752735,1706194239041,-228.0737053,0.0001873,2]
[312752736,1706194239055,-157.88779037,0.0001873,2]
[312752737,1706194239069,-198.57798915,0.0001873,2]
[312752738,1706194239080,-158.74528164,0.0001873,2]
[312752739,1706194239097,-267.16265354,0.0001874,2]
[312752740,1706194239112,-1583.23422085,0.00019,2]
[312752741,1706194239128,-165.921941,0.00019178,2]
[312752742,1706194239141,-1198.61763963,0.0002,2]
[312752743,1706194239155,-229.82325492,0.0002,2]
[312752744,1706194239171,-937.28901272,0.0002,2]
[312752745,1706194239186,-155.00155002,0.0002,2]
[312752746,1706194239202,-225.62643823,0.0002,2]
[312752747,1706194239216,-155.00310006,0.0002,2]
[312752748,1706194239228,-323.30988592,0.0002,2]
[312752749,1706194239239,-679.03304923,0.00020194,2]
[312752750,1706194239250,-850.73963902,0.00020194,2]
[312752751,1706194239266,-3286.52869079,0.00020195,5]
[312752752,1706194239279,-200.0,0.00020243,2]
[312752753,1706194239293,-16794.35324564,0.000206,2]
[312752754,1706194239305,-12925.18187281,0.00020612,2]
[312752755,1706194239316,-287.00255436,0.00020716,2]
[312752756,1706194239328,-309.90226266,0.00020817,2]
[312752757,1706194239340,-2074.94658461,0.00020817,2]
[312752758,1706194239352,-309.28168221,0.00020818,2]
[312752759,1706194239365,-176.34075871,0.00020819,2]
[312752760,1706194239377,-161.92569869,0.00020819,2]
[312752761,1706194239389,-576.19573987,0.00020819,2]
[312752762,1706194239401,-687.27829821,0.00020819,2]
[312752763,1706194239414,-1460.01689497,0.00020819,2]
[312752764,1706194239426,-218.89563054,0.00020819,2]
[312752765,1706194239438,-271.58627635,0.00020819,2]
[312752766,1706194239449,-298.26002398,0.00020819,2]
[312752767,1706194239461,-173.32941648,0.0002082,2]
[312752768,1706194239473,-155.25133396,0.0002082,2]
[312752769,1706194239484,-290.05056764,0.0002082,2]
[312752770,1706194239496,-198.19890126,0.0002082,2]
[312752771,1706194239511,-319.76844287,0.0002082,2]
[312752772,1706194239523,-479.63739001,0.0002082,2]
[312752773,1706194239535,-266.04529046,0.0002082,2]
[312752774,1706194239546,-173.30996998,0.0002082,2]
[312752775,1706194239558,-8389.57418974,0.0002082,2]
[312752776,1706194239571,-500.0,0.00020822,2]
[312752777,1706194239583,-500.0,0.00020822,2]
[312752778,1706194239595,-500.0,0.00020822,2]
[312752779,1706194239606,-500.0,0.00020822,2]
[312752780,1706194239618,-500.0,0.00020822,2]
[312752781,1706194239630,-500.0,0.00020822,2]
[312752782,1706194239641,-500.0,0.00020822,2]
[312752783,1706194239653,-500.0,0.00020822,2]
[312752784,1706194239665,-500.0,0.00020822,2]
[312752785,1706194239676,-500.0,0.00020822,2]
[312752786,1706194239688,-500.0,0.00020822,2]
[312752787,1706194239700,-500.0,0.00020822,2]
[312752788,1706194239712,-500.0,0.00020822,2]
[312752789,1706194239724,-500.0,0.00020822,2]
[312752790,1706194239736,-500.0,0.00020822,2]
[312752791,1706194239747,-500.0,0.00020822,2]
[312752792,1706194239763,-500.0,0.00020822,2]
[312752793,1706194239775,-500.0,0.00020822,2]
[312752794,1706194239785,-500.0,0.00020822,2]
[312752795,1706194239902,-500.0,0.00020822,2]
[312752796,1706194239915,-500.0,0.00020822,2]
[312752797,1706194239924,-500.0,0.00020822,2]
[312752798,1706194239933,-500.0,0.00020822,2]
[312752799,1706194239943,-500.0,0.00020822,2]
[312752800,1706194239952,-366.85431418,0.00020822,2]
[312752801,1706194239961,-500.0,0.00020822,2]
[312752802,1706194239970,-500.0,0.00020822,2]
[312752803,1706194239979,-500.0,0.00020822,2]
[312752804,1706194239989,-500.0,0.00020822,2]
[312752805,1706194239998,-500.0,0.00020822,2]
[312752806,1706194240010,-500.0,0.00020822,2]
[312752807,1706194240020,-500.0,0.00020822,2]
[312752808,1706194240030,-500.0,0.00020822,2]
[312752809,1706194240039,-197.9782841,0.00020822,2]
[312752810,1706194240049,-500.0,0.00020822,2]
[312752811,1706194240060,-500.0,0.00020822,2]
[312752812,1706194240070,-500.0,0.00020822,2]
[312752813,1706194240079,-460.5785029,0.00020822,2]
[312752814,1706194240089,-423.52586032,0.00020822,2]
[312752815,1706194240101,-500.0,0.00020822,2]
[312752816,1706194240112,-543.09257964,0.00020822,2]
[312752817,1706194240123,-620.06102847,0.00020822,2]
[312752818,1706194240132,-155.30469748,0.00020822,2]
[312752819,1706194240143,-5275.81457674,0.00020822,2]
[312752820,1706194240152,-214.84183967,0.0002097,2]
[312752821,1706194240162,-166.666666,0.00021918,2]
[312752822,1706194240171,-3970.33105698,0.00022,2]
[312752823,1706194240180,-426.05744554,0.00022,2]
[312752824,1706194240190,-280.0,0.00022268,7]
[312752825,1706194240199,-166.666666,0.00022431,2]
[312752826,1706194240209,-166.666666,0.00022944,2]
[312752827,1706194240218,-1335.41395247,0.00023,2]
[312752828,1706194240227,-166.666666,0.00023456,2]
[312752829,1706194240237,-214.84183967,0.00023614,2]
[312752830,1706194240246,-166.666666,0.00023969,2]
[312752831,1706194240256,-167.03300129,0.00024367,2]
[312752832,1706194240269,-166.666666,0.00024482,2]
[312752833,1706194240279,-391.0,0.00024494,7]
[312752834,1706194240289,-280.0,0.00024658,2]
[312752835,1706194240300,-303.61999861,0.000249,2]
[312752836,1706194240310,-498.66582765,0.0002496,5]
[312752837,1706194240320,-4725.91421399,0.00025,2]
[312752838,1706194240330,-7382.89018777,0.00025,2]
[312752839,1706194240339,-260.18097711,0.00025,2]
[312752840,1706194240348,-214.84183967,0.00026257,2]
[312752841,1706194240358,-897.23201139,0.000264,2]
[312752842,1706194240368,-200.0,0.00026944,15]
[312752843,1706194240377,-348.0,0.00026944,15]
[312752844,1706194240386,-290.53836744,0.00027,2]
[312752845,1706194240398,-14073.05,0.00027397,3]
[312752846,1706194240407,-20377.23,0.00027397,3]
[312752847,1706194240416,-263.07850426,0.000274,2]
[312752848,1706194240426,-633.86160057,0.0002772,2]
[312752849,1706194240435,-236.50829151,0.00028,7]
[312752850,1706194240444,-155.20393255,0.00028,2]
[312752851,1706194240454,-508.40167916,0.00028,2]
[312752852,1706194240463,-2709.78859167,0.00028712,2]
[312752853,1706194240472,-1129.12562411,0.00028712,2]
[312752854,1706194240481,-50000.0,0.0002877,3]
[312752855,1706194240490,-214.84183967,0.000289,2]
[312752856,1706194240500,-309.36261394,0.00029,2]
[312752857,1706194240514,-1880.79357717,0.00029,2]
[312752858,1706194240524,-300.0,0.00029,2]
[312752859,1706194240533,-279.82176233,0.00029,2]
[312752860,1706194240542,-6129.67718162,0.00029,2]
[312752861,1706194240551,-764.4359775,0.00029,2]
[312752862,1706194240560,-2085.40450746,0.00029,2]
[312752863,1706194240569,-1826.97153487,0.00029,2]
[312752864,1706194240578,-620.69308003,0.00029106,2]
[312752865,1706194240587,-412.0149305,0.00029315,2]
[312752868,1706194240596,-153.0,0.00029315,2]
[312752871,1706194240605,-153.0,0.00029315,2]
[312752874,1706194240614,-153.0,0.00029315,2]
[312752877,1706194240623,-153.0,0.00029315,2]
[312752880,1706194240632,-153.0,0.00029315,2]
[312752883,1706194240642,-306.6902113,0.00029315,2]
[312752886,1706194240651,-307.0293409,0.00029315,2]
[312752888,1706194240660,-153.0,0.00029315,2]
[312752890,1706194240670,-153.0,0.00029315,2]
[312752892,1706194240679,-153.0,0.00029315,2]
[312752893,1706194240689,-153.0,0.00029315,2]
[312752894,1706194240698,-153.0,0.00029315,2]
[312752895,1706194240708,-153.0,0.00029315,2]
[312752897,1706194240717,-153.0,0.00029315,2]
[312752898,1706194240726,-153.0,0.00029315,2]
[312752899,1706194240739,-153.0,0.00029315,2]
[312752900,1706194240749,-199.3339408,0.00029315,2]
[312752901,1706194240762,-153.0,0.00029315,2]
[312752902,1706194240771,-153.0,0.00029315,2]
[312752904,1706194240780,-199.3339408,0.00029315,2]
[312752905,1706194240790,-153.0,0.00029315,2]
[312752906,1706194240800,-153.0,0.00029315,2]
[312752907,1706194240809,-153.0,0.00029315,2]
[312752908,1706194240819,-199.3339408,0.00029315,2]
[312752909,1706194240828,-153.0,0.00029315,2]
[312752910,1706194240839,-153.0,0.00029589,2]
[312752911,1706194240850,-200.0,0.00029638,15]
[312752912,1706194240859,-200.0,0.00029638,15]
[312752913,1706194240869,-368.0,0.00029638,15]
[312752914,1706194240877,-291.31420189,0.0003,3]
[312752915,1706194240887,-195.4790082,0.0003,2]
[312752916,1706194240896,-172.93463747,0.0003,2]
[312752917,1706194240905,-785.40936716,0.0003,4]
[312752918,1706194240915,-139264.62830083,0.0003,4]
[312752919,1706194240925,-688.78830185,0.0003,4]
[312752920,1706194240934,-318.20063645,0.0003,2]
[312752921,1706194240943,-244.31917233,0.0003,4]
[312752922,1706194240953,-155.00155002,0.0003,4]
[312752923,1706194240962,-797.64547305,0.0003,4]
[312752924,1706194240971,-2155.42358262,0.0003,2]
[312752925,1706194240980,-151.0,0.0003,2]
[312752926,1706194240990,-393.719375,0.0003,2]
[312752927,1706194240999,-393.719375,0.0003,2]